{"text_format":"3","workbook":"xlsx","n_sheets":2,"sheets":["UPORABA TEGA DELOVNEGA ZVEZKA","REDOVALNICA"],"not_rendered":{"defined_names":7},"read":"whole","date_system":"1900"}

{"sheet":"UPORABA TEGA DELOVNEGA ZVEZKA","index":0,"n_rows":10,"n_cols":2,"rows_kept":10}
[null,"NAVODILA"]
[null,"Z delovnim listom REDOVALNICA lahko izračunate ocene na podlagi pridobljenih točk pri posamezni nalogi. "]
[null,"Navodila: Ne pozabite shraniti varnostnih kopij svojih ocen."]
[null,"1. Vnesite ime šole, informacije o razredu, imena študentov in ID-je študentov (izbirno).   "]
[null,"2. Prilagodite tabelo »Ocena in končna ocena« tako, da se ujema z vašim načinom ocenjevanja."]
[null,"3. Vnesite imena nalog, preskusov znanja ali testov (na primer »preskus znanja 1«) z začetkom v celici H8, poleg tega pa še točke, kolikor je vredna posamezna naloga. "]
[null,"4. Vnesite ocene za posameznega študenta za vsak preskus znanja. Vrednosti v stolpcih »Povprečno«, »Rezultat«, »Črkovna ocean« in »Povprečna ocena« so samodejno izračunane, vendar jih lahko po želji preglasite. Če želite dodeliti dodatne točke, preprosto dodelite več točk, kot je vseh možnih točk za to nalogo."]
[null,"Če želite spremeniti območje tiskanja, uporabite ukaz »Območje tiskanja« v meniju »Postavitev strani«."]
[null,"Rezultati za ocene temeljijo na standardni lestvici glede na skupno število točk, dodeljenih v vrsticah 8 in 9. Prilagodite vsako nalogo ali preskus znanja, nato nastavite odstotek, ki bo uporabljen za posamezno oceno. Če želite ročno vnesti spremembe, prepišite celice »Rezultat«."]
[null,"Vnesite posamezno nalogo ali preskus znanj ter dodeljene točke v celice od H8 do X9."]

{"sheet":"REDOVALNICA","index":1,"n_rows":24,"n_cols":24,"rows_kept":24,"merged":[[1,1,2,6],[3,1,3,6],[4,1,6,6],[7,4,7,6],[8,4,8,6],[10,4,10,6],[11,4,11,6],[19,1,19,6],[20,1,20,2],[20,3,20,4],[21,1,21,2],[21,3,21,4],[22,1,22,2],[22,3,22,4],[23,1,23,2],[23,3,23,4]]}
[null,"IME VAŠE ŠOLE"]
[null,"Ime učitelja"]
[{"$nulls":7},"Rezultat",{"$f":"I4*SkupnoŠteviloTočk","v":118},120,126,134,140,{"v":145.6666666666666,"d":"146"},154,160,166,174,180,186,194]
[null,"Predavanje/projekt",{"$nulls":5},"%",{"v":0.59,"d":"59%"},{"v":0.6,"d":"60%"},{"v":0.63,"d":"63%"},{"v":0.67,"d":"67%"},{"v":0.7,"d":"70%"},{"v":0.728333333333333,"d":"73%"},{"v":0.77,"d":"77%"},{"v":0.8,"d":"80%"},{"v":0.83,"d":"83%"},{"v":0.87,"d":"87%"},{"v":0.9,"d":"90%"},{"v":0.93,"d":"93%"},{"v":0.97,"d":"97%"}]
[null,"Leto/semester",{"$nulls":5},"Črkovna ocena","5","-7","7","+7","-8","8","+8","-9","9","+9","-10","10","+10"]
[{"$nulls":7},"Povprečna ocena",0,0.67,1,1.33,1.67,2,2.33,2.67,3,3.33,3.67,4,4]
[]
[{"$nulls":4},"Ime naloge ali preskusa znanja",null,null,"HW1","HW2","Č1"]
[{"$nulls":4},"Skupno število možnih točk",null,null,50,50,100]
[]
[{"$nulls":4},"Skupno število nalog in preskusov znanja:",null,null,{"$f":"COUNTA(H8:X8)","v":3}]
[{"$nulls":4},"Skupno število možnih točk:",null,null,{"$f":"SUM(H9:X9)","v":200}]
[]
[null,"Ime učenca","ID študenta","Povprečno","Rezultat","Črkovna ocena","Povprečna ocena","Stolpec 6","Stolpec 7","Stolpec 8","Stolpec 9","Stolpec 10","Stolpec 11","Stolpec 12","Stolpec 13","Stolpec 14","Stolpec 15","Stolpec 16","Stolpec 17","Stolpec 18","Stolpec 19","Stolpec 20","Stolpec 21","Stolpec 22"]
[null,"Številka študenta 1",null,{"$f":"IFERROR(IF(COUNT(Ocene[[#This Row],[Stolpec 6]:[Stolpec 22]])=0,\"\",SUM(Ocene[[#This Row],[Stolpec 6]:[Stolpec 22]])/SkupnoŠteviloTočk),\"\")","v":{"v":0.91,"d":"91.0%"}},{"$f":"IF(COUNT(Ocene[[#This Row],[Stolpec 6]:[Stolpec 22]])=0,\"\",SUM(Ocene[[#This Row],[Stolpec 6]:[Stolpec 22]]))","v":182},{"$f":"IFERROR(IF(Ocene[[#This Row],[Povprečno]]<>\"\",HLOOKUP(Ocene[[#This Row],[Povprečno]]*SkupnoŠteviloTočk,TabelaRedovalnice,3),\"\"),0)","v":"-10"},{"$f":"IFERROR(IF(Ocene[[#This Row],[Povprečno]]<>\"\",HLOOKUP(Ocene[[#This Row],[Povprečno]]*SkupnoŠteviloTočk,TabelaRedovalnice,4),\"\"),0)","v":3.67},45,45,92]
[null,"Številka študenta",null,{"$f":"IFERROR(IF(COUNT(Ocene[[#This Row],[Stolpec 6]:[Stolpec 22]])=0,\"\",SUM(Ocene[[#This Row],[Stolpec 6]:[Stolpec 22]])/SkupnoŠteviloTočk),\"\")","v":{"v":1,"d":"100.0%"}},{"$f":"IF(COUNT(Ocene[[#This Row],[Stolpec 6]:[Stolpec 22]])=0,\"\",SUM(Ocene[[#This Row],[Stolpec 6]:[Stolpec 22]]))","v":200},{"$f":"IFERROR(IF(Ocene[[#This Row],[Povprečno]]<>\"\",HLOOKUP(Ocene[[#This Row],[Povprečno]]*SkupnoŠteviloTočk,TabelaRedovalnice,3),\"\"),0)","v":"+10"},{"$f":"IFERROR(IF(Ocene[[#This Row],[Povprečno]]<>\"\",HLOOKUP(Ocene[[#This Row],[Povprečno]]*SkupnoŠteviloTočk,TabelaRedovalnice,4),\"\"),0)","v":{"v":4,"d":"4.00"}},50,50,100]
[{"$nulls":3},{"$f":"IFERROR(IF(COUNT(Ocene[[#This Row],[Stolpec 6]:[Stolpec 22]])=0,\"\",SUM(Ocene[[#This Row],[Stolpec 6]:[Stolpec 22]])/SkupnoŠteviloTočk),\"\")","v":""},{"$f":"IF(COUNT(Ocene[[#This Row],[Stolpec 6]:[Stolpec 22]])=0,\"\",SUM(Ocene[[#This Row],[Stolpec 6]:[Stolpec 22]]))","v":""},{"$f":"IFERROR(IF(Ocene[[#This Row],[Povprečno]]<>\"\",HLOOKUP(Ocene[[#This Row],[Povprečno]]*SkupnoŠteviloTočk,TabelaRedovalnice,3),\"\"),0)","v":""},{"$f":"IFERROR(IF(Ocene[[#This Row],[Povprečno]]<>\"\",HLOOKUP(Ocene[[#This Row],[Povprečno]]*SkupnoŠteviloTočk,TabelaRedovalnice,4),\"\"),0)","v":""}]
[{"$nulls":3},{"$f":"IFERROR(IF(COUNT(Ocene[[#This Row],[Stolpec 6]:[Stolpec 22]])=0,\"\",SUM(Ocene[[#This Row],[Stolpec 6]:[Stolpec 22]])/SkupnoŠteviloTočk),\"\")","v":""},{"$f":"IF(COUNT(Ocene[[#This Row],[Stolpec 6]:[Stolpec 22]])=0,\"\",SUM(Ocene[[#This Row],[Stolpec 6]:[Stolpec 22]]))","v":""},{"$f":"IFERROR(IF(Ocene[[#This Row],[Povprečno]]<>\"\",HLOOKUP(Ocene[[#This Row],[Povprečno]]*SkupnoŠteviloTočk,TabelaRedovalnice,3),\"\"),0)","v":""},{"$f":"IFERROR(IF(Ocene[[#This Row],[Povprečno]]<>\"\",HLOOKUP(Ocene[[#This Row],[Povprečno]]*SkupnoŠteviloTočk,TabelaRedovalnice,4),\"\"),0)","v":""}]
[{"$nulls":3},{"$f":"IFERROR(IF(COUNT(Ocene[[#This Row],[Stolpec 6]:[Stolpec 22]])=0,\"\",SUM(Ocene[[#This Row],[Stolpec 6]:[Stolpec 22]])/SkupnoŠteviloTočk),\"\")","v":""},{"$f":"IF(COUNT(Ocene[[#This Row],[Stolpec 6]:[Stolpec 22]])=0,\"\",SUM(Ocene[[#This Row],[Stolpec 6]:[Stolpec 22]]))","v":""},{"$f":"IFERROR(IF(Ocene[[#This Row],[Povprečno]]<>\"\",HLOOKUP(Ocene[[#This Row],[Povprečno]]*SkupnoŠteviloTočk,TabelaRedovalnice,3),\"\"),0)","v":""},{"$f":"IFERROR(IF(Ocene[[#This Row],[Povprečno]]<>\"\",HLOOKUP(Ocene[[#This Row],[Povprečno]]*SkupnoŠteviloTočk,TabelaRedovalnice,4),\"\"),0)","v":""}]
[]
[null,"Povzetek predavanja",null,"Povprečno",null,"Črkovna ocena","Povprečna ocena","","","","","","","","","","",""]
[null," Povprečno",null,{"$f":"IFERROR(AVERAGE(Ocene[[#All],[Povprečno]]),0)","v":{"v":0.9550000000000001,"d":"95.5%"}},null,{"$f":"IFERROR(HLOOKUP(D22*SkupnoŠteviloTočk,TabelaRedovalnice,3),\"\")","v":"10"},{"$f":"IFERROR(AVERAGE(Ocene[[#All],[Povprečna ocena]]),0)","v":{"v":3.835,"d":"3.84"}},"","","","","","","","","","","","","","","","",""]
[null," Najvišji rezultat",null,{"$f":"IFERROR(MAX(Ocene[[#All],[Povprečno]]),0)","v":{"v":1,"d":"100.0%"}},null,{"$f":"IFERROR(HLOOKUP(D23*SkupnoŠteviloTočk,TabelaRedovalnice,3),\"\")","v":"+10"},{"$f":"IFERROR(MAX(Ocene[[#All],[Povprečna ocena]]),0)","v":{"v":4,"d":"4.00"}},"","","","","","","","","","","","","","","","",""]
[null," Najnižji rezultat",null,{"$f":"IFERROR(MIN(Ocene[[#All],[Povprečno]]),0)","v":{"v":0.91,"d":"91.0%"}},null,{"$f":"IFERROR(HLOOKUP(D24*SkupnoŠteviloTočk,TabelaRedovalnice,3),\"\")","v":"-10"},{"$f":"IFERROR(MIN(Ocene[[#All],[Povprečna ocena]]),0)","v":3.67},"","","","","","","","","","","","","","","","",""]